Cogmind - Beta 16 @@@ ROGUE MODE // 2026.01.22 @ 18:14:45 Player: notme Result: Destroyed by G-34 Mercenary with Small Laser Performance ------------- Evolutions (0) 0 Regions Visited (1) 200 Robots Destroyed (13) 65 Value Destroyed (303) 303 Prototype IDs (2) 40 Alien Tech Used (0) 0 Bonus (0) 0 TOTAL SCORE: 608 Bonus ------- None Cogmind --------- Core Integrity 0/250 Matter 285/300 Energy 250/250 System Corruption 0% Temperature Cool (13) Movement Flying (117) Ox1 Location -10/Materials Parts ------- > --- POWER (1) -------- Ion Engine > --- PROPULSION (2) --- Flight Unit Flight Unit > --- UTILITY (2) ------ Small Storage Unit Utility Shielding > --- WEAPON (2) ------- Light Assault Rifle Light Cannon > --- INVENTORY (8) ---- Aluminum Leg Heat Sink Sensor Array Signal Interpreter Utility Shielding Utility Shielding Light Cannon Grenade Launcher Peak State ------------ > --- POWER ------------ Ion Engine > --- PROPULSION ------- Aluminum Leg Aluminum Leg > --- UTILITY ---------- Small Storage Unit Utility Shielding > --- WEAPON ----------- Small Laser Small Laser > --- INVENTORY -------- Ion Engine Light Treads Light Treads Utility Shielding Light Assault Rifle Grenade Launcher [Rating: 7] Favorites ----------- Power Ion Engine Engine Ion Engine Propulsion Aluminum Leg Leg Aluminum Leg Flight Unit Flight Unit Utility Small Storage Unit Storage Small Storage Unit Protection Utility Shielding Weapon Small Laser Energy Gun Small Laser Energy Cannon Beam Cannon Ballistic Gun Light Assault Rifle Ballistic Cannon Light Cannon Build | -11 -10 ------- Run | Yrd Mat Slots Evolved . | . . Power . | . . Propulsion . | . . Utility . | . . Weapon . | . . Parts Attached 15 | 6 9 Power 3 | 1 2 Engine 3 | 1 2 Core . | . . Reactor . | . . Propulsion 5 | 2 3 Treads . | . . Leg 3 | 2 1 Wheel . | . . Hover . | . . Flight 2 | . 2 Utility 2 | 1 1 Device . | . . Storage 1 | 1 . Processor . | . . Hackware . | . . Protection 1 | . 1 Artifact . | . . Weapon 5 | 2 3 Energy Gun 2 | 2 . Energy Cannon 1 | . 1 Ballistic Gun 1 | . 1 Ballistic Cannon 1 | . 1 Launcher . | . . Special Weapon . | . . Impact Weapon . | . . Slashing Weapon . | . . Piercing Weapon . | . . Special Melee Weapon . | . . Unidentified Prototypes . | . . Parts Lost 5 | . 5 Power 1 | . 1 Propulsion 2 | . 2 Utility . | . . Weapon 2 | . 2 Highest Loss Streak 3 | . 3 To Critical Strikes . | . . Average Backups 6 | 1 7 Power . | . . Propulsion . | . . Utility 3 | . 4 Weapon 2 | . 2 Tool/Special . | . . Unused Backups 13 | . 13 Power . | . . Propulsion 3 | . 3 Utility 8 | . 8 Weapon 2 | . 2 Tool/Special . | . . Average Slot Usage (%) 97 | . 97 Engine 13 | . 13 Leg 17 | . 17 Flight 10 | . 10 Storage 14 | . 14 Protection 13 | . 13 Energy Gun 8 | . 8 Energy Cannon 5 | . 5 Ballistic Gun 8 | . 8 Ballistic Cannon 5 | . 5 Peak Build Rating 7 | 6 7 Average Rating 6 | 4 6 On Entrance 3 | . 6 Avg Prop Armor Cover (%) . | . . Naked Turns . | . . Heaviest Build 15 | 12 15 Greatest Support 20 | 20 20 Greatest Overweight (x) 3 | 3 3 Average Overweight (x) . | . . Largest Inventory Capacity 8 | 8 8 Average Capacity 7 | 7 8 Most Carried 8 | 4 8 Average Carried 6 | 2 7 Final Capacity 8 | 8 8 Final Carried 8 | 4 8 Class Distribution -------------------- 100% | Mutant Dominant Class ---------------- Mutant | -10/Materials Resources | -11 -10 ----------- Run | Yrd Mat Matter Collected 449 | 172 277 Remotely . | . . Salvage Created 329 | . 329 Parts 15 | . 15 Haulers Intercepted . | . . Recyclers Shooed . | . . Parts Field Recycled . | . . Retrieved Matter . | . . Parts Self-Destructed . | . . Prevented . | . . Parts Restored . | . . Kills | -11 -10 ------- Run | Yrd Mat Combat Hostiles Destroyed 12 | . 12 Guns 6 | . 6 Cannons 6 | . 6 Classes Destroyed 3 | . 3 Watcher 1 | . 1 Swarmer 6 | . 6 Grunt 6 | . 6 Best Kill Streak 4 | . 4 Combat Bots Only 3 | . 3 Max Kills in Single Turn 1 | . 1 Gunslinging . | . . Exploded . | . . Melee . | . . Uniques/NPCs Destroyed . | . . Combat | -11 -10 -------- Run | Yrd Mat Hostile Shots Fired 144 | . 144 Missed 34 | . 34 Hits 110 | . 110 Projectile 110 | . 110 Damage Taken 1025 | . 1025 Core 255 | . 255 Absorbed by Shields . | . . Redirected to Shielding 11 | . 11 Core Remaining (%) 100 | 100 . Volleys Fired 63 | . 63 Largest 2 | . 2 Hottest 100 | . 100 Shots Fired 120 | . 120 Gun 69 | . 69 Cannon 51 | . 51 Launcher . | . . Special . | . . Kinetic 52 | . 52 Thermal 68 | . 68 Explosive . | . . Electromagnetic . | . . Robot Hit Streak 11 | . 11 Robot Miss Streak 6 | . 6 Penetration Max . | . . Secondary Targets . | . . Shots Hit Robots 75 | . 75 Core Hits 21 | . 21 Critical Kills . | . . Critical Parts Destroyed . | . . Critical Strikes . | . . Melee Attacks . | . . Impact . | . . Slashing . | . . Piercing . | . . Sneak Attacks . | . . Combat Hostiles . | . . Follow-up Attacks . | . . Damage Inflicted 1011 | . 1011 Guns 432 | . 432 Cannons 576 | . 576 Explosions . | . . Melee . | . . Ramming 3 | . 3 Kinetic 347 | . 347 Thermal 661 | . 661 Explosive . | . . Electromagnetic . | . . Impact . | . . Slashing . | . . Piercing . | . . Highest Corruption . | . . Average Corruption . | . . Corruption Purged . | . . Corruption Blocked . | . . Overload Shots . | . . Overflow Damage 7 | . 7 Projectiles 7 | . 7 Explosions . | . . Melee . | . . Knockbacks 4 | . 4 Impact . | . . Kinetic 4 | . 4 Secondary . | . . Self-Inflicted Damage . | . . Shots . | . . Rammed . | . . Targets Rammed 1 | . 1 Kicked 1 | . 1 Crushed . | . . Highest Temperature 411 | . 411 Average Temperature 115 | . 115 Received Heat Transfer 264 | . 264 Effects 1 | . 1 Energy Bleed 1 | . 1 Siege Activations . | . . Martial Activations . | . . Shielding Activations . | . . Robots Disrupted . | . . Combat Hostiles . | . . Robots Corrupted . | . . Combat Hostiles . | . . Parts Fried . | . . Impact Corruptions . | . . Robots Melted . | . . Combat Hostiles . | . . Parts Melted 2 | . 2 Heat Transferred 1452 | . 1452 Parts Sabotaged . | . . Parts Stolen . | . . Parts Stripped . | . . Power Chain Reactions . | . . Alert | -11 -10 ------- Run | Yrd Mat Maximum Alert Level . | . . Low Security (%) 100 | 100 100 Level 1 . | . . Level 2 . | . . Level 3 . | . . Level 4 . | . . Level 5 . | . . High Security . | . . Max Security . | . . Peak Influence 143 | . 143 Initial . | . . Average 58 | . 65 Influence Increases 373 | . 373 Destroy 0b10 Robot/C 240 | . 240 Destroy 0b10 Robot/NC 5 | . 5 Destroy Leader 42 | . 42 Successful Hack 9 | . 9 Disable Machine 15 | . 15 Destroy Structure 2 | . 2 Lose Combat Pursuer 60 | . 60 Influence Decreases 286 | . 286 Time Decay 236 | . 236 Lost Part 50 | . 50 Squads Dispatched 1 | . 1 Investigation . | . . Extermination . | . . Reinforcement 1 | . 1 Assault . | . . Garrison . | . . Intercept . | . . Searches Triggered . | . . Construction Impeded . | . . Haulers Reinforced . | . . Active Scanning Responses . | . . Cargo Convoy Interrupts . | . . Stealth | -11 -10 --------- Run | Yrd Mat Distress Signals 3 | . 3 Communications Jammed . | . . Distress Signals . | . . Times Spotted 22 | . 22 Peak Tracking Total 7 | . 7 Tactical Retreats 3 | . 3 Traps | -11 -10 ------- Run | Yrd Mat Traps Triggered . | . . Indirectly . | . . Trap Hack Attempts . | . . Triggered . | . . Disarmed . | . . Reprogrammed . | . . Reused . | . . Traps Extracted . | . . Installed . | . . Triggered . | . . Machines | -11 -10 ---------- Run | Yrd Mat Machines Disabled 1 | . 1 Max in Single Turn 1 | . 1 Machines Repaired . | . . Machines Dismantled . | . . Machines Sabotaged . | . . Overloaded Fab Kills . | . . Hacking | -11 -10 --------- Run | Yrd Mat Machines Accessed 2 | . 2 Terminals 2 | . 2 Fabricators . | . . Repair Stations . | . . Recycling Units . | . . Scanalyzers . | . . Garrison Access . | . . Total Hacks 7 | . 7 Successful 2 | . 2 Failed 5 | . 5 Catastrophic 1 | . 1 Database Lockouts . | . . Manual 2 | . 2 Terminals 7 | . 7 Fabricators . | . . Repair Stations . | . . Recycling Units . | . . Scanalyzers . | . . Garrison Access . | . . Terminal Hacks 2 | . 2 Prototype ID Bank 1 | . 1 Locate Traps 1 | . 1 Fabricator Hacks . | . . Repair Station Hacks . | . . Recycling Unit Hacks . | . . Scanalyzer . | . . Garrison Access Hacks . | . . Unauthorized Hacks . | . . Terminals . | . . Fabricators . | . . Repair Stations . | . . Recycling Units . | . . Scanalyzers . | . . Garrison Access . | . . Data Cores Recovered . | . . Used . | . . Hacking Detections 2 | . 2 Full Trace Events . | . . Feedback Events . | . . Feedback Blocked . | . . Robot Schematics Acquired . | . . Robots Built . | . . Authchips . | . . Time . | . . Total Robot Build Rating . | . . Part Schematics Acquired . | . . Parts Built . | . . Authchips . | . . Time . | . . Total Part Build Rating . | . . Part Studies Acquired . | . . Parts Repaired . | . . Time . | . . Parts Recycled . | . . Recycled Matter . | . . Retrieved Matter . | . . Retrieved Components . | . . Parts Scanalyzed . | . . Part Schematics Acquired . | . . Parts Damaged . | . . Bothacking | -11 -10 ------------ Run | Yrd Mat Used RIF Installer . | . . Robots Hacked . | . . Non-combat . | . . Combat . | . . Robot Hacks Applied . | . . Relay Couplers Released . | . . Fabnet Peak Effective % . | . . Robots Rewired . | . . Allies Hacked . | . . Hacks Repelled . | . . Allies | -11 -10 -------- Run | Yrd Mat Total Allies . | . . Largest Group . | . . Highest-Rated Group . | . . Highest-Rated Ally . | . . Total Orders . | . . Ally Attacks . | . . Total Damage . | . . Kills . | . . Allies Corrupted . | . . Allies Melted . | . . Intel | -11 -10 ------- Run | Yrd Mat Active Infowar (turns) . | . . Robot Analysis Total . | . . Derelict Logs Recovered . | . . Drone Launches . | . . Drone Recoveries . | . . Exploration | -11 -10 ------------- Run | Yrd Mat Turns Passed 700 | 76 624 Spaces Moved 350 | 49 301 Core 16 | 16 . Treads . | . . Legs 200 | 33 167 Wheels . | . . Hover . | . . Flight 134 | . 134 Fastest Speed 50 | 50 117 Average Speed 121 | 121 121 Slowest Speed 290 | 200 290 Overloaded Moves . | . . Propulsion Burnouts . | . . Robots Hopped . | . . Potential Cave-ins . | . . Cave-ins Triggered . | . . Exploration Rate (%) 26 | 5 47 Regions Visited 1 Branch Regions . Pre-discovered Areas . | . . Known Exits Taken . | . . Unknown Exits Taken 1 | 1 . Scrap Searched . | . . Spaces Dug . | . . Terrain Destroyed . | . . Melee . | . . Projectile . | . . AOE . | . . Terrain Rammed . | . . Walls Destroyed . | . . Machines Disabled . | . . Actions | -11 -10 --------- Run | Yrd Mat Total 513 | 63 450 Wait 54 | 3 51 Move 349 | 48 301 Hop . | . . Pick Up 20 | 6 14 Fast Attach 7 | 4 3 Attach 6 | 2 4 Detach 1 | . 1 Swap 3 | . 3 Drop 9 | . 9 Fire 63 | . 63 Melee . | . . Ram . | . . Kick 1 | . 1 Crush . | . . Escape Stasis . | . . Rewire . | . . Trap . | . . Miscellaneous . | . . Route ------- -11/Scrapyard -10/Materials (discovered 3 exits: [*Mat x2] / [*Min]) History --------- Turn | Location | Event 27 | -11/Scrapyard | Discovered new exit (range 13) 77 | -11/Scrapyard | Entered Materials 135 | -10/Materials | Discovered new exit (range 16) 309 | -10/Materials | Core integrity fell below 50% 319 | -10/Materials | Build established: Mutant 366 | -10/Materials | Lost 3 parts (1p1n1w) 495 | -10/Materials | Discovered new exit (range 7) 518 | -10/Materials | Core integrity fell below 20% 587 | -10/Materials | Discovered new exit (range 9) 701 | -10/Materials | Destroyed by G-34 Mercenary with Small Laser Last Messages --------------- Hvy. Ion Engine Imp. EM Shotgun 00518_ G-34 Mercenary knocked back. 00534_ G-34 Mercenary destroyed. 00542_ G-47 Trooper knocked back. 00545_ G-47 Trooper destroyed. 00549_ Acquired 2 matter. 00550_ Acquired 37 matter. 00553_ Acquired Heat Sink. 00556_ Acquired 35 matter. 00556_ U-05 Engineer builds a Door. 00565_ G-34 Mercenary destroyed. 00569_ Dropped Signal Interpreter. 00569_ Acquired Aluminum Leg. 00575_ Acquired 15 matter. 00587_ EXIT=FOUND 00603_ Dropped Ion Engine. 00643_ Dropped Sml. Battery. 00644_ Acquired Sensor Array. 00645_ Extracted 1 energy. Map ----- +----------------------------------------------------+ | ??#""" # ######????????????????? | | ??#""" + + ??????????????? | | ??#""" # ###???????????????????? | | ??#""" # ] #?????????????????????? | | ??# #!! % #######?????????????????????? | | ??# #! ""#?????????????????????????? | | ############ T"#?????????????????????????? | | ""#?????????????????????????? | | % ###?????????????????????????? | | #???????????????????????????? | | #+###########T#### #???????????????????????????? | | #??????###??# #???????????????????????????? | | #???????????# #???????????????????????????? | | """ #???????????# #???????????????????????????? | | """ #??????????? ??????????????????????????? | | """ #??????????# ""#????????????????????????? | | #??????????# ||#????????????????????????? | | ######??????????# < ""#????????????????????????? | | ######??????# ||#????????????????????????? | | % +??????# ""#????????????????????????? | | ######??????# "#????????????????????????? | | ### #???????????## ^####????????????????????????? | | ##??#????????????# ^ ######??????????????????????? | | "#???????????????+ ^^ #??????????????????????? | | T#???????????????# ^^ #??????????????????????? | | "#???????????????# k@#??????????????????????? | | ###+################### ############# #????????? | | # % ## # g ??? | | + [""" ## """ # ??? | | # """ ##""""" * # ##############+##/#????? | | #* """ ##""""" # #########??????????????? | | # ##""""" # # !! #??????????????? | | # """ ## """ # # ! ! #??????????????? | | # """ ! ## # + !! #??????????????? | | + """ #######/###### #########??????????????? | | # + #???# #?########?????????????? | | ########## #???# # ??????????????? | | ? ##### # """ ""??????????????? | | + """ ""??????????????? | | ##+############ # """ ""??????????????? | | ??????????????# < #! ??????????????? | | ??????????????# ######+##?########?????????????? | | ??????????????#####??? ??????????????????????? | | ???????????????????? #????????????????????? | | ??????????????????# """ """ #????????????????????? | | ??????????????????# """ """ #????????????????????? | | ??????????????????# """ """ #????????????????????? | | ??????????????????# #????????????????????? | | ??????????????????#? #????????????????????? | | ???????????????????? ?#????????????????????? | +----------------------------------------------------+ Best States ------------- Heat Dissipation 25 Energy Generation 10 Energy Capacity 250 Matter Stores 300 Matter Capacity 300 Sight Range 16 Terrain Scan Density 10 Utility Shielding 33 Evasion (%) 55 Item Schematics ----------------- None Robot Schematics ------------------ None Fabricated ------------ Nothing Repaired ---------- Nothing Studied --------- None Alien Tech Used ----------------- None Achievements -------------- None Challenges ------------ None Game ------ Seed EnergyLatentGreatsword Manual? 0 Play Time 00:13:12 Cumulative 15.1 hours Start 2026.01.22 @ 17:03:26 End 2026.01.22 @ 18:14:45 Sessions 1 Manual Loads 0 Difficulty Rogue Special Mode None Game No. 14 Rogue 8 Adventurer 6 Explorer 0 Win Type - Total 0 Types 0/0/0/0/0/0/0/0/0/0 Lore% 11 Gallery% 15 Achievement% 14 Wizard Run 0 Options --------- Layout 0 ASCII 0 Keyboard 1 Movement Numpad Keybinds 0 Fullscreen 1 Font 24/Smallcaps Map View 76x50 Zoom Use 0% Tactical HUD 1 Map Filters NONE Filters NONE Steam 1 RUN: 536486ac-4d18-4984-835a-ce0c762cf43b